bitfinex/quotes_ETHUSD_20251120
["timestamp","ask_amount","ask_price","bid_price","bid_amount"]
[1763678330557,0.54273773,2892.6,2892.5,0.900804]
[1763678331056,0.54273773,2892.6,2892.5,0.405504]
[1763678332251,1.03433773,2892.6,2892.5,0.405504]
[1763678332454,0.002,2892.8,2892.6,0.405504]
[1763678332617,0.002,2892.8,2892.7,0.900804]
[1763678333958,0.9915,2892.8,2891.3,0.1963]
[1763678334181,0.1916,2892.4,2891.3,0.1963]
[1763678334574,0.6895,2892.4,2891.3,0.1963]
[1763678335082,0.6895,2892.4,2891.4,0.405504]
[1763678335083,0.4979,2892.3,2891.4,0.405504]
[1763678336475,0.4979,2892.3,2891.3,0.1963]
[1763678336679,0.4979,2892.3,2891.4,0.405504]
[1763678338483,0.4979,2892.3,2891.2,0.405504]
[1763678339491,0.6734,2891.3,2891.0,0.001]
[1763678339794,0.4886,2891.1,2891.0,0.001]
[1763678340002,0.9865,2891.1,2891.0,0.001]
[1763678340493,2.35038768,2891.1,2891.0,0.001]
[1763678341797,1.55192861,2891.1,2891.0,0.001]
[1763678341978,1.72791742,2891.1,2891.0,0.001]
[1763678342166,0.9865,2891.1,2891.0,0.001]
[1763678344890,0.74141742,2891.2,2891.0,0.001]
[1763678345201,0.1818,2891.3,2891.0,0.001]
[1763678345202,0.74141742,2891.3,2891.0,0.001]
[1763678345354,0.74141742,2891.5,2891.1,0.1963]
[1763678345564,0.74141742,2891.6,2891.2,0.405504]
[1763678345882,0.1818,2891.7,2891.2,0.405504]
[1763678346492,1.24523144,2891.7,2891.2,0.405504]
[1763678346650,0.74141742,2891.6,2891.2,0.405504]
[1763678346855,0.6797,2891.7,2891.0,0.001]
[1763678347292,1.42111742,2891.7,2891.0,0.001]
[1763678347597,0.74141742,2891.6,2891.0,0.001]
[1763678347756,1.23931742,2891.6,2891.0,0.001]
[1763678347955,0.4979,2891.6,2891.0,0.001]
[1763678348973,0.54294276,2891.5,2891.0,0.001]
[1763678349368,0.4702,2891.4,2891.0,0.001]
[1763678351278,0.54294276,2891.5,2891.4,0.405504]
[1763678351586,0.1886,2892.1,2891.4,0.881504]
[1763678352291,0.4702,2892.2,2891.4,1.368404]
[1763678352292,0.74229562,2892.2,2891.4,1.368404]
[1763678352492,0.74229562,2892.4,2891.6,0.405504]
[1763678352791,0.32222653,2892.3,2891.6,0.405504]
[1763678353091,0.79242653,2892.5,2891.6,0.405504]
[1763678353263,1.06452215,2892.5,2891.7,0.405504]
[1763678353464,0.74229562,2892.6,2891.7,0.405504]
[1763678353664,0.32226623,2892.5,2891.8,0.405504]
[1763678353894,1.06456185,2892.6,2891.8,0.405504]
[1763678354098,0.32226623,2892.5,2891.9,0.405504]
[1763678354307,0.74229562,2892.6,2891.9,0.405504]
[1763678354599,0.74229562,2892.7,2892.0,0.405504]
[1763678355097,0.002,2892.8,2892.2,0.405504]
[1763678355271,0.002,2892.8,2892.2,0.892404]
[1763678355598,0.5427208,2892.7,2892.2,0.892404]
[1763678355897,0.002,2892.8,2892.2,0.892404]
[1763678356093,0.002,2892.4,2892.2,0.892404]
[1763678356308,0.002,2892.4,2892.3,0.881504]
[1763678357701,0.4976,2892.4,2891.3,0.1878]
[1763678358004,0.2014,2892.3,2891.4,0.4869]
[1763678358163,0.2014,2892.3,2891.5,0.405504]
[1763678358365,0.5427858,2892.1,2891.5,0.405504]
[1763678358602,0.5427858,2892.1,2891.4,0.4869]
[1763678358798,0.5427858,2892.1,2891.5,0.405504]
[1763678359218,0.5427858,2892.1,2891.6,0.405504]
[1763678359422,0.5427858,2892.1,2891.8,0.405504]
[1763678359723,0.5427858,2892.1,2891.5,0.405504]
[1763678360086,0.5427858,2892.1,2891.6,0.405504]
[1763678360500,0.5427858,2892.1,2891.8,0.405504]
[1763678361009,0.5427858,2892.1,2891.9,0.405504]
[1763678361216,0.5427858,2892.1,2892.0,0.476]
[1763678362943,0.5427858,2892.1,2891.7,0.405504]
[1763678363421,0.5427858,2892.1,2891.8,0.405504]
[1763678366125,0.5427858,2892.1,2891.3,0.1878]
[1763678366126,0.5427858,2892.1,2892.0,0.881504]
[1763678366507,0.5427858,2892.1,2892.0,1.368404]
[1763678366731,0.002,2892.4,2892.1,0.405504]
[1763678367225,0.002,2892.4,2891.8,0.405504]
[1763678367602,0.002,2892.4,2891.9,0.405504]
[1763678368020,0.002,2892.4,2891.9,0.892404]
[1763678370529,0.002,2892.4,2892.3,0.4684]
[1763678370913,0.002,2892.4,2892.1,0.585704]
[1763678371326,0.002,2892.4,2892.3,0.4684]
[1763678371833,0.002,2892.4,2892.1,0.585704]
[1763678372734,0.002,2892.4,2891.8,0.1802]
[1763678373105,0.002,2892.4,2891.9,0.405504]
[1763678374950,0.002,2892.4,2891.4,3.82]
[1763678374951,0.4802,2892.3,2891.4,3.82]
[1763678375105,0.4995,2892.0,2891.4,3.82]
[1763678375304,0.4995,2892.0,2891.5,0.405504]
[1763678377810,0.4995,2892.0,2891.4,0.405504]
[1763678378637,0.0019,2891.5,2890.8,0.473]
[1763678378845,0.0019,2891.5,2891.1,0.1938]
[1763678379028,0.0019,2891.5,2891.2,0.405504]
[1763678380128,0.6733,2891.9,2891.2,0.405504]
[1763678380439,0.54287826,2891.6,2890.9,0.405504]
[1763678380747,1.2311254,2891.8,2890.9,0.405504]
[1763678380913,0.4857,2891.8,2890.9,0.405504]
[1763678381246,0.4857,2891.7,2890.9,0.405504]
[1763678381424,0.4857,2891.7,2890.7,0.001]
[1763678381425,0.4716,2891.1,2890.7,0.001]
[1763678381909,0.9573,2891.1,2890.7,0.001]
[1763678383140,1.50024223,2891.1,2890.7,0.001]
[1763678383642,0.1876,2891.9,2891.1,0.405504]
[1763678383945,0.1876,2891.9,2891.0,0.4559]
[1763678383946,6.81088747,2891.5,2891.0,0.001]
[1763678384113,0.4716,2891.1,2891.0,0.001]
[1763678384648,0.9573,2891.1,2891.0,0.001]
[1763678386025,7.76818747,2891.1,2891.0,0.001]
[1763678386226,8.83708359,2891.1,2891.0,0.001]
[1763678386640,9.74407623,2891.1,2891.0,0.001]
[1763678386836,10.81161652,2891.1,2891.0,0.001]
[1763678390973,2.44748876,2891.1,2891.0,0.001]
[1763678391263,0.4716,2891.1,2891.0,0.001]
[1763678391462,0.9573,2891.1,2891.0,0.001]
[1763678393227,0.4716,2891.1,2891.0,0.001]
[1763678394049,0.9573,2891.1,2891.0,0.001]
[1763678397075,0.90699264,2891.0,2890.7,0.001]
[1763678397250,0.90699264,2891.0,2890.4,0.001]
[1763678397251,7.71788011,2890.5,2890.4,0.001]
[1763678397437,8.17708011,2890.5,2890.4,0.001]
[1763678397638,8.66278011,2890.5,2890.4,0.001]
[1763678400275,1.47093828,2891.1,2890.5,0.405504]
[1763678400574,1.47093828,2891.1,2890.4,0.6497]
[1763678400575,0.4716,2890.5,2890.4,0.001]
[1763678400776,6.81088747,2890.9,2890.4,0.001]
[1763678400777,0.90699264,2890.8,2890.4,0.001]
[1763678400986,1.58808139,2890.8,2890.4,0.001]
[1763678402165,0.68108875,2890.8,2890.4,0.001]
[1763678402477,0.74367459,2891.1,2890.4,0.001]
[1763678402652,0.4857,2891.2,2890.4,0.001]
[1763678402653,1.22935924,2891.2,2890.4,0.001]
[1763678402984,0.4857,2891.2,2890.4,0.474]
[1763678403150,7.00258747,2891.3,2890.5,0.405504]
[1763678403349,0.32289848,2891.2,2890.5,0.405504]
[1763678403548,0.90699264,2891.2,2890.6,0.405504]
[1763678403750,0.4857,2891.5,2890.6,0.405504]
[1763678403988,0.4857,2891.5,2890.4,0.001]
[1763678404147,1.63103605,2891.5,2890.4,0.001]
[1763678404347,6.81088747,2891.3,2890.4,0.001]
[1763678404564,0.90699264,2891.2,2890.4,0.001]
[1763678404878,0.4716,2890.5,2890.4,0.001]
[1763678405576,0.67407125,2890.5,2890.4,0.001]
[1763678406249,0.9573,2890.5,2890.4,0.001]
[1763678406573,1.28051307,2890.5,2890.4,0.001]
[1763678407277,0.79481307,2890.5,2890.4,0.001]
[1763678407474,1.28051307,2890.5,2890.4,0.001]
[1763678407779,2.02558389,2890.5,2890.4,0.001]
[1763678407979,1.74244228,2890.5,2890.4,0.001]
[1763678408707,0.99737146,2890.5,2890.4,0.001]
[1763678411503,1.74244228,2890.5,2890.4,0.001]
[1763678411908,0.99737146,2890.5,2890.4,0.001]
[1763678414217,1.74244228,2890.5,2890.4,0.001]
[1763678414507,2.2855663,2890.5,2890.4,0.001]
[1763678414671,1.74244228,2890.5,2890.4,0.001]
[1763678416816,7.3629389,2890.5,2890.4,0.001]
[1763678417683,7.90606315,2890.5,2890.4,0.001]
[1763678418907,7.906058,2890.5,2890.4,0.001]
[1763678420920,2.28556653,2890.5,2890.4,0.001]
[1763678421826,2.77146653,2890.5,2890.4,0.001]
[1763678423019,2.28556653,2890.5,2890.4,0.001]
[1763678424536,2.77146653,2890.5,2890.4,0.001]
[1763678425004,2.28556653,2890.5,2890.4,0.001]
[1763678427036,2.04956514,2890.5,2890.4,0.001]
[1763678427331,3.88436113,2890.5,2890.4,0.001]
[1763678427532,2.95655778,2890.5,2890.4,0.001]
[1763678427739,4.68285524,2890.5,2890.4,0.001]
[1763678428030,4.19695524,2890.5,2890.4,0.001]
[1763678428231,2.95655778,2890.5,2890.4,0.001]
[1763678430138,2.63334471,2890.5,2890.4,0.001]
[1763678431542,3.09764471,2890.5,2890.4,0.001]
[1763678431708,3.42150209,2890.5,2890.4,0.001]
[1763678431909,3.42260256,2890.5,2890.4,0.001]
[1763678432620,3.42263796,2890.5,2890.4,0.001]
[1763678433245,4.66303542,2890.5,2890.4,0.001]
[1763678433548,3.76057842,2890.5,2890.4,0.001]
[1763678433847,4.22627842,2890.5,2890.4,0.001]
[1763678434309,4.29175602,2890.5,2890.1,0.18678]
[1763678434509,0.93382859,2890.3,2890.1,0.18678]
[1763678434705,1.07042311,2890.2,2890.1,0.18678]
[1763678434920,1.07042311,2890.2,2890.1,0.65268]
[1763678437646,2.52055398,2890.2,2890.1,0.65268]
[1763678440371,3.32709224,2890.2,2889.7,0.405504]
[1763678440580,1.97741575,2890.1,2889.7,0.405504]
[1763678440786,1.07042311,2890.0,2889.7,0.405504]
[1763678441095,1.07042311,2890.0,2888.2,0.119]
[1763678441096,0.5634,2889.8,2888.8,0.4662]
[1763678441374,0.93256433,2889.2,2888.1,0.4662]
[1763678441545,1.07042311,2889.1,2888.1,0.4662]
[1763678441744,0.32425182,2889.0,2888.2,0.405504]
[1763678442174,0.1809,2888.9,2888.1,0.4662]
[1763678442373,0.39673158,2888.9,2888.2,0.4662]
[1763678442559,1.46715469,2888.9,2888.2,0.4662]
[1763678442759,5.62690045,2888.7,2888.2,0.4662]
[1763678443161,0.90699264,2888.6,2888.0,0.66]
[1763678443744,0.90699264,2888.6,2888.1,0.405504]
[1763678443939,0.39673158,2888.9,2888.0,0.1938]
[1763678444145,5.62690045,2888.6,2888.0,0.66]
[1763678444763,5.62690045,2888.6,2888.1,0.405504]
[1763678445088,5.62690045,2888.6,2888.1,0.406504]
[1763678445446,5.62690045,2888.6,2888.1,0.872704]
[1763678446288,5.62690045,2888.6,2888.1,0.406504]
[1763678447194,5.62690045,2888.6,2888.3,0.405504]
[1763678447556,6.49343203,2888.9,2888.5,0.4767]
[1763678447790,1.55633584,2888.8,2888.5,0.4767]
[1763678448358,1.55633584,2888.8,2888.7,0.4767]
[1763678448359,0.90699264,2888.8,2888.7,0.4767]
[1763678448560,0.54337129,2888.9,2888.7,0.4767]
[1763678448791,0.54337129,2888.9,2888.1,0.406504]
[1763678448792,0.54337129,2888.9,2888.8,0.4767]
[1763678450885,0.90699264,2889.1,2888.8,0.4767]
[1763678451062,1.56038195,2889.1,2888.8,0.4767]
[1763678451965,0.4611,2888.9,2888.3,0.4662]
[1763678452165,0.4611,2888.9,2888.4,0.405504]
[1763678452693,0.4611,2888.9,2888.1,0.001]
[1763678452694,0.4611,2888.9,2888.1,0.406504]
[1763678453214,0.4611,2888.9,2888.1,0.872704]
[1763678453618,0.4611,2888.9,2888.2,0.4662]
[1763678453786,0.4611,2888.9,2888.1,0.406504]
[1763678453983,0.90699264,2888.8,2888.1,0.406504]
[1763678454491,0.90699264,2888.8,2888.1,0.872704]
[1763678455521,0.90699264,2888.8,2888.2,0.4662]
[1763678455819,0.90699264,2888.8,2888.1,0.406504]
[1763678455820,0.90699264,2888.8,2888.1,0.872704]
[1763678456017,0.67360413,2888.7,2888.1,0.872704]
[1763678456541,1.14340413,2888.7,2888.1,0.406504]
[1763678457020,0.67360413,2888.7,2888.1,0.872704]
[1763678458219,0.90699264,2888.8,2888.1,0.872704]
[1763678458388,0.90699264,2888.8,2888.3,0.405504]
[1763678458785,0.90699264,2888.8,2888.4,0.405504]
[1763678460607,0.90699264,2889.0,2888.7,0.4767]
[1763678464117,1.4503351,2889.0,2888.7,0.4767]
[1763678464316,2.20503866,2889.0,2888.7,0.4767]
[1763678464504,1.6616962,2889.0,2888.7,0.4767]
[1763678466803,0.4698,2889.2,2888.7,0.4767]
[1763678467002,0.4698,2889.2,2889.1,0.4767]
[1763678467003,0.32269041,2889.2,2889.1,0.4767]
[1763678467233,13.17729791,2889.7,2889.1,0.4767]
[1763678467234,0.74347762,2889.4,2889.1,0.5579]
[1763678467411,1.65047026,2889.6,2889.2,0.4767]
[1763678467616,1.65047026,2889.6,2889.3,0.4767]
[1763678467617,0.32301572,2889.5,2889.3,0.4767]
[1763678467802,0.54327279,2889.4,2889.3,0.4767]
[1763678468009,0.54327279,2889.4,2889.3,0.871704]
[1763678468253,0.54327279,2889.4,2889.3,1.348404]
[1763678468731,0.54327279,2889.4,2889.3,1.5785348]
[1763678471861,0.002,2890.1,2889.4,0.405504]
[1763678472029,0.002,2890.1,2890.0,0.898704]
[1763678472461,0.002,2890.1,2890.0,1.387904]
[1763678472668,0.002,2890.1,2890.0,1.52655962]
[1763678473029,0.002,2890.4,2890.1,0.405504]
[1763678473266,0.002,2890.4,2890.3,1.092504]
[1763678473628,0.002,2890.4,2890.3,1.581704]
[1763678473829,0.002,2891.0,2890.6,1.80569664]
[1763678474031,0.002,2891.0,2890.9,0.898704]
[1763678474281,0.002,2891.0,2890.9,1.387904]
[1763678474927,0.002,2891.4,2890.9,1.387904]
[1763678474928,0.002,2891.4,2891.0,0.405504]
[1763678475128,0.002,2891.4,2891.3,1.092504]
[1763678475540,0.002,2891.4,2891.3,1.581704]
[1763678476278,0.002,2891.7,2891.4,0.405504]
[1763678476462,0.002,2891.7,2891.6,0.898704]
[1763678476976,0.002,2891.7,2891.6,1.387904]
[1763678477481,0.002,2891.7,2891.6,1.52646596]
[1763678477642,0.002,2892.0,2891.6,1.52646596]
[1763678477977,0.002,2892.0,2891.9,0.898704]
[1763678478348,0.002,2892.0,2891.9,1.387904]
[1763678479351,0.002,2892.7,2892.0,0.405504]
[1763678479557,0.002,2892.7,2892.3,0.898704]
[1763678480045,0.002,2892.7,2892.3,1.387904]
[1763678481304,0.002,2892.7,2892.4,0.405504]
[1763678481447,0.002,2892.7,2892.6,0.898704]
[1763678481980,0.002,2892.7,2892.6,1.387904]
[1763678482183,0.002,2892.7,2892.6,1.506904]
[1763678483300,0.002,2892.7,2891.2,0.1962]
[1763678483301,0.9252,2892.7,2891.2,0.1962]
[1763678483498,0.4691,2892.7,2892.6,0.13854493]
[1763678483703,1.94194011,2892.6,2890.6,0.4892]
[1763678483904,6.80221943,2891.6,2890.0,0.6854]
[1763678484094,0.1878,2890.9,2890.7,0.4892]
[1763678484285,0.2584,2890.8,2890.7,0.4892]
[1763678484485,0.7356,2890.8,2890.0,0.1962]
[1763678484691,0.7356,2890.8,2890.1,0.4892]
[1763678484924,0.4772,2890.7,2890.1,0.4892]
[1763678485091,0.0052,2890.2,2890.1,0.4892]
[1763678485611,0.4824,2890.2,2890.1,0.4892]
[1763678486024,0.4824,2890.2,2890.1,0.894704]
[1763678486519,0.0052,2890.2,2890.1,0.894704]
[1763678486680,0.4772,2890.5,2890.2,0.405504]
[1763678486881,0.4772,2890.8,2890.2,0.405504]
[1763678487782,0.1852,2890.9,2890.2,0.405504]
[1763678488320,0.1852,2890.9,2890.2,0.5831344]
[1763678489091,0.1852,2891.2,2890.2,1.0723344]
[1763678489593,0.1852,2891.2,2890.4,0.405504]
[1763678489992,0.1852,2891.2,2890.3,0.894704]
[1763678490392,0.1852,2891.2,2890.5,0.405504]
[1763678490592,0.1852,2891.2,2890.7,0.405504]
[1763678491017,0.1852,2891.2,2890.5,0.405504]
[1763678494345,0.54292595,2891.1,2890.5,0.405504]
[1763678494548,0.1852,2891.2,2890.5,0.405504]
[1763678494922,0.6846,2891.2,2890.7,0.405504]
[1763678495419,0.6846,2891.2,2890.5,0.405504]
[1763678495625,0.6846,2891.2,2890.9,0.405504]
[1763678496028,0.6846,2891.2,2890.5,0.405504]
[1763678496229,0.6846,2891.2,2891.1,0.405504]
[1763678496753,0.9236,2891.2,2890.5,0.405504]
[1763678496915,0.6846,2891.2,2891.1,0.894704]
[1763678497116,0.1971,2891.4,2891.2,0.405504]
[1763678497418,0.92010058,2892.3,2891.2,0.405504]
[1763678497419,1.46742121,2891.8,2891.2,0.405504]
[1763678497726,0.54289839,2891.6,2891.3,0.405504]
[1763678497928,0.2273,2891.4,2891.3,0.405504]
[1763678500343,0.6984,2891.4,2891.3,0.405504]
[1763678501940,0.54289839,2891.6,2891.3,0.889704]
[1763678502247,0.002,2892.6,2891.5,0.889704]
[1763678502452,0.002,2892.6,2891.9,0.405504]
[1763678502754,0.54268229,2892.4,2891.9,0.405504]
[1763678502962,0.54268229,2892.4,2892.0,0.405504]
[1763678503147,0.002,2892.6,2892.0,0.405504]
[1763678503334,0.002,2892.6,2892.0,0.878604]
[1763678504956,0.4731,2892.6,2892.0,0.878604]
[1763678505895,0.4731,2892.6,2891.7,0.405504]
[1763678506052,0.54269397,2892.5,2892.2,0.405504]
[1763678506575,0.2612,2892.3,2891.7,0.405504]
[1763678506982,0.2612,2892.3,2891.9,0.405504]
[1763678507484,0.2612,2892.3,2891.8,0.405504]
[1763678507684,0.2612,2892.3,2891.8,0.860004]
[1763678508050,0.2612,2892.3,2892.0,0.4545]
[1763678510064,0.002,2892.6,2892.0,0.4545]
[1763678510587,0.2612,2892.1,2892.0,0.4545]
[1763678511190,0.7302,2892.1,2891.1,0.1954]
[1763678511354,0.7302,2892.1,2891.2,0.4545]
[1763678511553,0.469,2892.0,2891.3,0.405504]
[1763678511968,0.0047,2891.4,2891.2,0.4545]
[1763678512168,0.1912,2891.9,2891.3,0.405504]
[1763678512367,0.4711,2891.8,2891.3,0.405504]
[1763678512583,0.4711,2891.8,2890.9,0.405504]
[1763678513003,0.4711,2891.8,2891.5,0.405504]
[1763678513205,0.2612,2891.6,2891.5,0.405504]
[1763678513381,0.2612,2891.6,2890.9,0.405504]
[1763678513757,0.2612,2891.6,2891.5,0.860004]
[1763678515058,0.2612,2891.6,2891.5,0.4545]
[1763678515259,0.7302,2891.6,2891.5,0.860004]
[1763678517764,0.2612,2891.6,2891.5,0.860004]
[1763678519661,0.7302,2891.6,2891.5,0.860004]
[1763678521401,0.7302,2891.6,2891.5,0.4545]
[1763678521702,0.90699264,2891.5,2890.9,0.001]
[1763678522002,1.43088123,2891.4,2890.9,0.001]
[1763678522182,0.2612,2891.0,2890.9,0.001]
[1763678522383,0.2612,2891.0,2890.9,0.13965755]
[1763678522588,0.7302,2891.0,2890.9,0.13965755]
[1763678530994,0.4703,2891.0,2890.9,0.13965755]
[1763678531199,0.7322,2891.0,2890.9,0.13965755]
[1763678531809,0.4703,2891.0,2890.9,0.13965755]
[1763678532223,0.7322,2891.0,2890.9,0.13965755]
[1763678532590,0.4703,2891.0,2890.9,0.13965755]
[1763678532789,0.7322,2891.0,2890.9,0.13965755]
[1763678533208,0.2619,2891.4,2890.9,0.13965755]
[1763678533413,0.2619,2891.4,2890.9,0.62455755]
[1763678533617,0.2619,2891.4,2890.9,0.4859]
[1763678533789,0.2619,2891.4,2891.0,0.62455755]
[1763678533993,1.0676258,2891.7,2891.1,0.405504]
[1763678534195,0.32322867,2891.6,2891.1,0.405504]
[1763678534502,0.93596642,2891.9,2891.1,0.869704]
[1763678534707,0.79963959,2891.8,2891.2,0.4764]
[1763678535094,0.32323959,2891.8,2891.3,0.405504]
[1763678535431,0.4764,2892.2,2891.8,0.405504]
[1763678535616,0.4764,2892.2,2891.5,0.4642]
[1763678535813,0.32325966,2892.4,2891.5,0.4642]
[1763678536029,1.54444298,2892.5,2891.7,0.405504]
[1763678536341,1.06804298,2892.4,2891.7,0.405504]
[1763678536638,0.74478332,2892.4,2891.8,0.405504]
[1763678537045,0.74288358,2892.5,2891.2,0.405504]
[1763678537204,0.002,2892.6,2891.9,0.405504]
[1763678537728,0.32532546,2892.6,2892.0,0.405504]
[1763678537928,0.002,2892.6,2892.0,0.405504]
[1763678539562,0.002,2892.6,2892.5,0.4849]
[1763678539839,0.002,2892.6,2892.5,0.9491]
[1763678540208,0.002,2892.6,2892.5,1.354604]
[1763678541045,0.918,2892.6,2891.3,0.4642]
[1763678541213,0.32325018,2892.5,2891.3,0.4642]
[1763678541413,0.79745018,2892.5,2891.4,0.405504]
[1763678541615,0.79745018,2892.5,2891.3,0.4642]
[1763678541918,0.64987727,2892.4,2891.3,0.4642]
[1763678542126,0.64987727,2892.4,2891.4,0.405504]
[1763678542326,0.4764,2892.3,2891.4,0.405504]
[1763678545423,0.32325644,2892.5,2891.6,0.405504]
[1763678545631,0.4764,2892.4,2891.2,0.869704]
[1763678545828,0.4764,2892.4,2891.4,0.405504]
[1763678546366,0.4764,2892.4,2891.4,0.869704]
[1763678547637,0.4764,2892.4,2891.1,0.1912]
[1763678547638,0.4764,2892.4,2891.6,0.405504]
[1763678547858,0.4764,2892.4,2891.3,0.405504]
[1763678548051,0.4764,2892.4,2891.3,0.869704]
[1763678548620,0.4764,2892.4,2891.5,0.405504]
[1763678549158,0.4764,2892.4,2891.6,0.405504]
[1763678550440,0.4764,2892.4,2891.2,0.889204]
[1763678550815,0.4764,2892.4,2891.4,0.405504]
[1763678551039,0.4764,2892.4,2891.6,0.405504]
[1763678551653,0.4764,2892.4,2891.2,0.405504]
[1763678551854,0.4764,2892.4,2891.4,0.001]
[1763678552050,0.4764,2892.4,2891.4,0.406504]
[1763678552651,0.32306602,2892.5,2891.4,0.001]
[1763678552851,0.32306602,2892.5,2891.6,0.405504]
[1763678553067,0.4643,2892.5,2891.6,0.405504]
[1763678553252,0.4643,2892.5,2891.4,0.001]
[1763678553253,0.78739157,2892.5,2891.4,0.001]
[1763678553453,0.1925,2892.6,2891.4,0.001]
[1763678553767,0.4643,2892.5,2891.4,0.001]
[1763678553971,0.4643,2892.5,2891.5,0.405504]
[1763678554984,0.1925,2892.6,2891.7,0.405504]
[1763678555360,0.1925,2892.6,2891.7,0.889204]
[1763678555756,0.1925,2892.6,2891.7,0.4837]
[1763678556107,0.4643,2892.5,2891.5,0.405504]
[1763678556266,0.54274597,2892.4,2891.6,0.405504]
[1763678556652,0.4643,2892.3,2891.6,0.405504]
[1763678557381,0.4643,2892.3,2891.4,0.001]
[1763678557549,0.4643,2892.3,2891.5,0.405504]
[1763678557944,0.4643,2892.3,2891.6,0.405504]
[1763678559788,0.54275311,2892.2,2891.6,0.405504]
[1763678560158,0.1925,2892.6,2891.4,0.001]
[1763678560387,0.4516,2892.2,2891.4,0.406504]
[1763678560574,0.4516,2892.2,2891.4,0.891204]
[1763678561300,1.06918294,2892.5,2892.1,0.4721]
[1763678561301,0.32368655,2892.4,2892.1,0.4721]
[1763678561456,0.002,2892.6,2891.6,0.405504]
[1763678561657,0.002,2892.6,2892.3,0.4721]
[1763678562601,0.2829,2892.4,2891.4,0.001]
[1763678562762,0.0045,2892.1,2891.4,0.001]
[1763678563289,0.4516,2892.0,2891.4,0.001]
[1763678563692,0.1835,2891.9,2891.4,0.001]
[1763678564060,0.6351,2891.9,2891.4,0.001]
[1763678567101,0.4516,2891.8,2891.4,0.001]
[1763678567795,0.1835,2891.9,2891.4,0.001]
[1763678568003,0.4516,2891.8,2891.4,0.001]
[1763678569297,0.1835,2891.9,2891.4,0.001]
[1763678569625,0.1835,2891.8,2891.4,0.001]
[1763678570132,0.6351,2891.8,2891.4,0.001]
[1763678571719,0.1835,2891.8,2891.4,0.001]
[1763678571895,0.74614255,2892.1,2891.4,0.001]
[1763678572095,0.32475635,2892.0,2891.4,0.406504]
[1763678573212,1.0708989,2892.0,2891.4,0.406504]
[1763678573411,1.61370108,2891.9,2891.4,0.406504]
[1763678573599,0.4516,2892.1,2891.4,0.406504]
[1763678573787,0.32473805,2892.0,2891.4,0.406504]
[1763678574189,0.77633805,2892.0,2891.4,0.406504]
[1763678574389,0.32473805,2891.9,2891.4,0.406504]
[1763678574621,0.77633805,2892.0,2891.4,0.406504]
[1763678574922,0.50823805,2891.9,2891.4,0.406504]
[1763678575227,0.95983805,2891.9,2891.4,0.406504]
[1763678575422,0.6351,2891.9,2891.4,0.406504]
[1763678575719,0.1835,2891.9,2891.4,0.001]
[1763678575920,0.32472225,2891.9,2891.4,0.001]
[1763678576113,1.52450906,2892.1,2891.5,0.405504]
[1763678576424,1.07290906,2892.0,2891.5,0.405504]
[1763678576606,1.07290906,2891.9,2891.5,0.405504]
[1763678576803,0.74818681,2891.9,2891.5,0.405504]
[1763678577127,0.99440311,2892.0,2891.5,0.405504]
[1763678577426,0.32471446,2891.9,2891.5,0.405504]
[1763678577926,0.32471446,2891.9,2891.4,0.001]
[1763678577927,0.95981446,2891.9,2891.4,0.001]
[1763678578124,1.29098992,2892.0,2891.5,0.405504]
[1763678578329,1.29098992,2892.0,2891.9,0.4721]
[1763678578330,0.54280311,2892.0,2891.9,0.4721]
[1763678578502,0.54280311,2892.0,2891.5,0.405504]
[1763678578703,0.54280311,2892.0,2891.4,0.001]
[1763678579022,0.54280311,2892.0,2891.4,0.4857]
[1763678579228,1.29091083,2892.0,2891.4,0.4857]
[1763678579425,0.54280311,2892.0,2891.4,0.4857]
[1763678580196,0.54280311,2892.0,2891.9,0.4721]
[1763678580623,0.86750826,2892.0,2891.9,0.4721]
[1763678580927,0.86750826,2892.0,2891.9,0.877604]
[1763678581126,0.54280311,2892.0,2891.9,1.362304]
[1763678581926,0.74995484,2892.6,2891.9,1.362304]
[1763678582097,0.54267414,2892.4,2892.1,0.405504]
[1763678582296,0.54267414,2892.4,2892.1,0.5822848]
[1763678582531,0.74795484,2892.5,2892.3,0.877604]
[1763678582733,0.002,2892.6,2892.5,0.4721]
[1763678583028,0.3265656,2892.6,2892.5,0.877604]
[1763678583228,0.002,2892.6,2892.5,1.5390848]
[1763678583404,0.002,2892.6,2892.5,0.405504]
[1763678583606,0.002,2892.6,2892.5,0.877604]
[1763678585197,0.002,2892.6,2892.5,1.362304]
[1763678591425,0.002,2892.6,2892.5,0.877604]
[1763678591659,0.002,2892.6,2892.5,1.352504]
[1763678591837,0.002,2892.9,2892.8,0.405504]
[1763678592042,0.002,2892.9,2892.8,0.857604]
[1763678592359,0.002,2892.9,2892.8,1.332504]
[1763678592556,0.002,2892.9,2892.8,1.47100599]
[1763678592929,0.4638,2894.5,2893.0,0.405504]
[1763678593129,0.4638,2894.5,2893.0,0.857604]
[1763678593368,0.4638,2894.7,2893.0,1.332504]
[1763678594069,0.4638,2894.7,2893.1,1.520104]
[1763678594455,0.1835,2895.2,2893.1,1.520104]
[1763678594657,0.4638,2894.7,2893.1,1.520104]
[1763678596365,0.4638,2895.0,2893.1,1.520104]
[1763678596678,0.6585,2894.8,2893.1,1.520104]
[1763678597174,0.6585,2894.8,2893.1,2.42709664]
[1763678597590,0.6585,2894.8,2893.3,0.857604]
[1763678597945,0.1947,2894.8,2893.3,1.332504]
[1763678598181,0.4638,2894.6,2893.3,1.332504]
[1763678598390,0.4638,2894.6,2893.3,1.450504]
[1763678598745,0.1947,2894.8,2893.3,1.450504]